[Event "Chess.com Isle of Man Masters"]
[Site "Villa Marina, Douglas, Isle of Man, United Kingdom"]
[Date "2018.10.22"]
[Round "3.16"]
[White "Hess, Robert"]
[Black "Wojtaszek, Radoslaw"]
[Result "0-1"]
[TimeControl "40 moves in 100 minutes, f.b. 20 moves in 50 minutes f.b. 15 minutes with a 30 second increment from move 0"]
[WhiteElo "2574"]
[BlackElo "2727"]

1. c4 {[%clk 01:40:49]} {[%emt 00:00:10]} Nf6 {[%clk 01:40:47]} {[%emt
00:00:13]} 2. g3 {[%clk 01:41:06]} {[%emt 00:00:13]} c6 {[%clk 01:40:44]}
{[%emt 00:00:33]} 3. Nf3 {[%clk 01:36:02]} {[%emt 00:05:34]} d5 {[%clk
01:41:04]} {[%emt 00:00:10]} 4. Qb3 {[%clk 01:29:59]} {[%emt 00:06:33]} dxc4
{[%clk 01:17:54]} {[%emt 00:23:41]} 5. Qxc4 {[%clk 01:30:23]} {[%emt 00:00:06]}
b5 {[%clk 01:17:45]} {[%emt 00:00:38]} 6. Qc2 {[%clk 01:30:04]} {[%emt
00:00:49]} Bb7 {[%clk 01:18:03]} {[%emt 00:00:12]} 7. Bg2 {[%clk 01:30:26]}
{[%emt 00:00:07]} Nbd7 {[%clk 01:17:34]} {[%emt 00:00:59]} 8. d4 {[%clk
01:24:43]} {[%emt 00:06:13]} e6 {[%clk 01:14:07]} {[%emt 00:03:58]} 9. O-O
{[%clk 01:19:20]} {[%emt 00:05:53]} c5 {[%clk 01:13:29]} {[%emt 00:01:08]} 10.
dxc5 {[%clk 01:11:21]} {[%emt 00:08:28]} Bxc5 {[%clk 01:13:18]} {[%emt
00:00:41]} 11. Nc3 {[%clk 01:11:28]} {[%emt 00:00:24]} Rc8 {[%clk 01:10:31]}
{[%emt 00:03:17]} 12. a3 {[%clk 01:04:54]} {[%emt 00:07:04]} O-O {[%clk
01:08:29]} {[%emt 00:02:32]} 13. Qd3 {[%clk 00:55:36]} {[%emt 00:09:49]} a6
{[%clk 01:07:04]} {[%emt 00:01:55]} 14. Be3 {[%clk 00:39:40]} {[%emt 00:16:25]}
Nb6 {[%clk 00:54:35]} {[%emt 00:12:59]} 15. Qxd8 {[%clk 00:38:17]} {[%emt
00:01:53]} Rfxd8 {[%clk 00:55:00]} {[%emt 00:00:05]} 16. Bxc5 {[%clk 00:38:40]}
{[%emt 00:00:07]} Rxc5 {[%clk 00:55:26]} {[%emt 00:00:03]} 17. Rfd1 {[%clk
00:38:26]} {[%emt 00:00:44]} Rdc8 {[%clk 00:53:19]} {[%emt 00:02:37]} 18. Nd2
{[%clk 00:35:32]} {[%emt 00:03:24]} Bxg2 {[%clk 00:53:12]} {[%emt 00:00:38]} 19.
Kxg2 {[%clk 00:35:55]} {[%emt 00:00:06]} R5c6 {[%clk 00:51:22]} {[%emt
00:02:21]} 20. a4 {[%clk 00:25:24]} {[%emt 00:11:01]} b4 {[%clk 00:45:45]}
{[%emt 00:06:07]} 21. Na2 {[%clk 00:25:48]} {[%emt 00:00:06]} a5 {[%clk
00:45:22]} {[%emt 00:00:54]} 22. Nb3 {[%clk 00:25:35]} {[%emt 00:00:42]} Nc4
{[%clk 00:45:21]} {[%emt 00:00:31]} 23. Rac1 {[%clk 00:11:37]} {[%emt
00:14:29]} e5 {[%clk 00:44:53]} {[%emt 00:00:58]} 24. Rb1 {[%clk 00:08:23]}
{[%emt 00:03:43]} Kf8 {[%clk 00:42:28]} {[%emt 00:02:56]} 25. Nac1 {[%clk
00:07:49]} {[%emt 00:01:04]} Ke7 {[%clk 00:40:49]} {[%emt 00:02:09]} 26. Nd3
{[%clk 00:08:14]} {[%emt 00:00:05]} Nd7 {[%clk 00:40:58]} {[%emt 00:00:21]} 27.
Nd2 {[%clk 00:06:07]} {[%emt 00:02:37]} Nxd2 {[%clk 00:39:10]} {[%emt
00:02:17]} 28. Rxd2 {[%clk 00:06:34]} {[%emt 00:00:04]} f6 {[%clk 00:39:34]}
{[%emt 00:00:06]} 29. b3 {[%clk 00:01:11]} {[%emt 00:05:53]} Rc3 {[%clk
00:39:20]} {[%emt 00:00:43]} 30. Kf1 {[%clk 00:01:33]} {[%emt 00:00:09]} Nf8
{[%clk 00:38:26]} {[%emt 00:01:24]} 31. e3 {[%clk 00:00:55]} {[%emt 00:01:08]}
Ne6 {[%clk 00:34:05]} {[%emt 00:04:51]} 32. h4 {[%clk 00:01:23]} {[%emt
00:00:02]} g5 {[%clk 00:33:08]} {[%emt 00:01:27]} 33. hxg5 {[%clk 00:00:34]}
{[%emt 00:01:20]} Nxg5 {[%clk 00:33:34]} {[%emt 00:00:05]} 34. Ne1 {[%clk
00:00:45]} {[%emt 00:00:19]} Ne4 {[%clk 00:33:06]} {[%emt 00:00:56]} 35. Rdb2
{[%clk 00:00:34]} {[%emt 00:00:43]} Rc1 {[%clk 00:33:15]} {[%emt 00:00:20]} 36.
Kg2 {[%clk 00:00:31]} {[%emt 00:00:33]} Rxb1 {[%clk 00:33:10]} {[%emt
00:00:35]} 37. Rxb1 {[%clk 00:00:59]} {[%emt 00:00:03]} Rc3 {[%clk 00:33:27]}
{[%emt 00:00:13]} 38. Rd1 {[%clk 00:00:55]} {[%emt 00:00:33]} Nc5 {[%clk
00:33:13]} {[%emt 00:00:43]} 39. Rd5 {[%clk 00:00:36]} {[%emt 00:00:49]} Ke6
{[%clk 00:31:34]} {[%emt 00:02:10]} 40. e4 {[%clk 00:01:03]} {[%emt 00:00:03]}
f5 {[%clk 00:31:08]} {[%emt 00:00:56]} 41. f4 {[%clk 00:48:28]} {[%emt
00:03:05]} exf4 {[%clk 01:21:08]} {[%emt 00:00:30]} 42. Rxf5 {[%clk 00:47:46]}
{[%emt 00:01:12]} Rxg3+ {[%clk 01:20:17]} {[%emt 00:01:21]} 43. Kh2 {[%clk
00:47:19]} {[%emt 00:00:57]} Rc3 {[%clk 01:19:07]} {[%emt 00:01:40]} 44. Ng2
{[%clk 00:46:15]} {[%emt 00:01:35]} Nxe4 {[%clk 01:18:07]} {[%emt 00:01:30]} 45.
Rxa5 {[%clk 00:43:43]} {[%emt 00:03:02]} f3 {[%clk 01:18:16]} {[%emt 00:00:20]}
46. Nf4+ {[%clk 00:44:00]} {[%emt 00:00:13]} Kd6 {[%clk 01:17:50]} {[%emt
00:00:57]} 47. Rd5+ {[%clk 00:35:41]} {[%emt 00:08:49]} Kc6 {[%clk 01:18:10]}
{[%emt 00:00:10]} 48. Rf5 {[%clk 00:36:04]} {[%emt 00:00:07]} Rxb3 {[%clk
01:16:07]} {[%emt 00:02:33]} 49. a5 {[%clk 00:23:06]} {[%emt 00:13:28]} Rb2+
{[%clk 01:13:57]} {[%emt 00:02:40]} 50. Kh3 {[%clk 00:23:27]} {[%emt 00:00:09]}
f2 {[%clk 01:14:12]} {[%emt 00:00:16]} 51. Nd3 {[%clk 00:22:56]} {[%emt
00:01:00]} Rb3 {[%clk 01:14:34]} {[%emt 00:00:07]} 0-1

[Event "Chess.com Isle of Man Masters"]
[Site "Villa Marina, Douglas, Isle of Man, United Kingdom"]
[Date "2018.10.22"]
[Round "3.17"]
[White "Rapport, Richard"]
[Black "Paehtz, Elisabeth"]
[Result "1-0"]
[TimeControl "40 moves in 100 minutes, f.b. 20 moves in 50 minutes f.b. 15 minutes with a 30 second increment from move 0"]
[WhiteElo "2725"]
[BlackElo "2513"]

1. d4 {[%clk 01:40:21]} {[%emt 00:00:37]} d5 {[%clk 01:40:56]} {[%emt
00:00:05]} 2. Nf3 {[%clk 01:40:46]} {[%emt 00:00:05]} Nf6 {[%clk 01:41:13]}
{[%emt 00:00:13]} 3. c4 {[%clk 01:41:11]} {[%emt 00:00:05]} c6 {[%clk
01:41:40]} {[%emt 00:00:03]} 4. Qb3 {[%clk 01:41:22]} {[%emt 00:00:19]} dxc4
{[%clk 01:42:06]} {[%emt 00:00:04]} 5. Qxc4 {[%clk 01:41:46]} {[%emt 00:00:05]}
Bg4 {[%clk 01:42:34]} {[%emt 00:00:03]} 6. Bf4 {[%clk 01:41:48]} {[%emt
00:00:28]} Nbd7 {[%clk 01:37:38]} {[%emt 00:05:26]} 7. Nbd2 {[%clk 01:42:09]}
{[%emt 00:00:08]} Qa5 {[%clk 01:35:57]} {[%emt 00:02:12]} 8. Qb3 {[%clk
01:41:33]} {[%emt 00:01:06]} Nb6 {[%clk 01:34:55]} {[%emt 00:01:32]} 9. a3
{[%clk 01:23:52]} {[%emt 00:18:11]} Be6 {[%clk 01:26:58]} {[%emt 00:08:26]} 10.
Qd1 {[%clk 01:19:24]} {[%emt 00:04:58]} Nh5 {[%clk 01:02:03]} {[%emt 00:25:25]}
11. Be5 {[%clk 01:14:54]} {[%emt 00:04:59]} f6 {[%clk 00:52:43]} {[%emt
00:09:51]} 12. Bc7 {[%clk 01:13:14]} {[%emt 00:02:10]} Rc8 {[%clk 00:51:29]}
{[%emt 00:01:44]} 13. Bxb6 {[%clk 01:12:37]} {[%emt 00:01:07]} Qxb6 {[%clk
00:51:30]} {[%emt 00:00:30]} 14. e3 {[%clk 01:10:24]} {[%emt 00:02:43]} g6
{[%clk 00:47:34]} {[%emt 00:04:26]} 15. Bc4 {[%clk 01:05:35]} {[%emt 00:05:18]}
Bd5 {[%clk 00:45:47]} {[%emt 00:02:17]} 16. Qc2 {[%clk 00:54:36]} {[%emt
00:11:29]} Rd8 {[%clk 00:45:19]} {[%emt 00:00:59]} 17. Ne4 {[%clk 00:43:08]}
{[%emt 00:11:58]} Bxe4 {[%clk 00:42:18]} {[%emt 00:03:31]} 18. Qxe4 {[%clk
00:43:19]} {[%emt 00:00:19]} Qa5+ {[%clk 00:42:03]} {[%emt 00:00:46]} 19. b4
{[%clk 00:42:25]} {[%emt 00:01:23]} Qf5 {[%clk 00:42:27]} {[%emt 00:00:06]} 20.
Qxf5 {[%clk 00:41:47]} {[%emt 00:01:09]} gxf5 {[%clk 00:42:53]} {[%emt
00:00:04]} 21. b5 {[%clk 00:39:50]} {[%emt 00:02:27]} cxb5 {[%clk 00:37:34]}
{[%emt 00:05:49]} 22. Bxb5+ {[%clk 00:39:56]} {[%emt 00:00:23]} Kf7 {[%clk
00:38:01]} {[%emt 00:00:03]} 23. Rc1 {[%clk 00:40:08]} {[%emt 00:00:18]} e6
{[%clk 00:35:47]} {[%emt 00:02:44]} 24. Rc7+ {[%clk 00:39:49]} {[%emt
00:00:49]} Be7 {[%clk 00:36:14]} {[%emt 00:00:04]} 25. Ke2 {[%clk 00:37:18]}
{[%emt 00:03:01]} a6 {[%clk 00:33:38]} {[%emt 00:03:06]} 26. Bd7 {[%clk
00:35:14]} {[%emt 00:02:33]} b5 {[%clk 00:33:29]} {[%emt 00:00:39]} 27. d5
{[%clk 00:31:09]} {[%emt 00:04:35]} exd5 {[%clk 00:32:03]} {[%emt 00:01:56]} 28.
Nd4 {[%clk 00:31:20]} {[%emt 00:00:18]} Bd6 {[%clk 00:31:49]} {[%emt 00:00:45]}
29. Be6+ {[%clk 00:30:59]} {[%emt 00:00:51]} Kg6 {[%clk 00:31:45]} {[%emt
00:00:34]} 30. Bf7+ {[%clk 00:30:54]} {[%emt 00:00:35]} Kh6 {[%clk 00:31:16]}
{[%emt 00:00:58]} 31. Nxf5+ {[%clk 00:31:08]} {[%emt 00:00:17]} Kg5 {[%clk
00:31:43]} {[%emt 00:00:03]} 32. Nxd6 {[%clk 00:30:56]} {[%emt 00:00:42]} Rxd6
{[%clk 00:32:09]} {[%emt 00:00:04]} 33. h4+ {[%clk 00:31:16]} {[%emt 00:00:10]}
Kh6 {[%clk 00:32:34]} {[%emt 00:00:05]} 34. g4 {[%clk 00:31:41]} {[%emt
00:00:04]} Ng7 {[%clk 00:32:59]} {[%emt 00:00:05]} 35. f4 {[%clk 00:32:06]}
{[%emt 00:00:06]} 1-0

[Event "Chess.com Isle of Man Masters"]
[Site "Villa Marina, Douglas, Isle of Man, United Kingdom"]
[Date "2018.10.22"]
[Round "3.18"]
[White "Mekhitarian, Krikor Sevag"]
[Black "Le, Quang Liem"]
[Result "0-1"]
[TimeControl "40 moves in 100 minutes, f.b. 20 moves in 50 minutes f.b. 15 minutes with a 30 second increment from move 0"]
[WhiteElo "2546"]
[BlackElo "2715"]

1. d4 {[%clk 01:40:51]} {[%emt 00:00:04]} Nf6 {[%clk 01:40:54]} {[%emt
00:00:09]} 2. c4 {[%clk 01:41:18]} {[%emt 00:00:05]} g6 {[%clk 01:41:15]}
{[%emt 00:00:08]} 3. Nf3 {[%clk 01:40:33]} {[%emt 00:01:15]} Bg7 {[%clk
01:41:37]} {[%emt 00:00:08]} 4. g3 {[%clk 01:40:50]} {[%emt 00:00:15]} O-O
{[%clk 01:41:47]} {[%emt 00:00:19]} 5. Bg2 {[%clk 01:41:17]} {[%emt 00:00:03]}
d6 {[%clk 01:42:05]} {[%emt 00:00:11]} 6. O-O {[%clk 01:41:28]} {[%emt
00:00:19]} Nc6 {[%clk 01:42:28]} {[%emt 00:00:08]} 7. Nc3 {[%clk 01:41:47]}
{[%emt 00:00:11]} e5 {[%clk 01:42:43]} {[%emt 00:00:15]} 8. dxe5 {[%clk
01:36:53]} {[%emt 00:05:24]} dxe5 {[%clk 01:43:05]} {[%emt 00:00:08]} 9. Bg5
{[%clk 01:37:17]} {[%emt 00:00:06]} Be6 {[%clk 01:43:14]} {[%emt 00:00:19]} 10.
Qa4 {[%clk 01:37:26]} {[%emt 00:00:22]} Qc8 {[%clk 01:43:21]} {[%emt 00:00:22]}
11. Bxf6 {[%clk 01:31:04]} {[%emt 00:06:53]} Bxf6 {[%clk 01:43:48]} {[%emt
00:00:03]} 12. Rfd1 {[%clk 01:28:51]} {[%emt 00:02:43]} Bg7 {[%clk 01:37:00]}
{[%emt 00:07:18]} 13. Nd5 {[%clk 01:19:35]} {[%emt 00:09:46]} Kh8 {[%clk
01:36:36]} {[%emt 00:00:53]} 14. e3 {[%clk 01:10:21]} {[%emt 00:09:45]} f5
{[%clk 01:35:08]} {[%emt 00:01:57]} 15. Rac1 {[%clk 00:55:46]} {[%emt
00:15:05]} e4 {[%clk 01:33:47]} {[%emt 00:01:50]} 16. Nd4 {[%clk 00:55:57]}
{[%emt 00:00:19]} Nxd4 {[%clk 01:33:39]} {[%emt 00:00:38]} 17. exd4 {[%clk
00:56:22]} {[%emt 00:00:06]} Rd8 {[%clk 01:33:34]} {[%emt 00:00:34]} 18. f3
{[%clk 00:50:24]} {[%emt 00:06:28]} exf3 {[%clk 01:28:39]} {[%emt 00:05:25]} 19.
Bxf3 {[%clk 00:50:16]} {[%emt 00:00:39]} c6 {[%clk 01:29:01]} {[%emt 00:00:07]}
20. Qb3 {[%clk 00:49:04]} {[%emt 00:01:43]} Bf7 {[%clk 01:27:12]} {[%emt
00:02:18]} 21. Nf4 {[%clk 00:47:05]} {[%emt 00:02:29]} Rxd4 {[%clk 01:27:33]}
{[%emt 00:00:10]} 22. Re1 {[%clk 00:46:24]} {[%emt 00:01:11]} Qd7 {[%clk
01:25:47]} {[%emt 00:02:15]} 23. Qa3 {[%clk 00:43:08]} {[%emt 00:03:47]} Rd2
{[%clk 01:23:47]} {[%emt 00:02:29]} 24. Re7 {[%clk 00:40:48]} {[%emt 00:02:50]}
Qd4+ {[%clk 01:20:25]} {[%emt 00:03:52]} 25. Kh1 {[%clk 00:41:05]} {[%emt
00:00:14]} Bf8 {[%clk 01:19:40]} {[%emt 00:01:14]} 0-1

[Event "Chess.com Isle of Man Masters"]
[Site "Villa Marina, Douglas, Isle of Man, United Kingdom"]
[Date "2018.10.22"]
[Round "3.19"]
[White "Artemiev, Vladislav"]
[Black "Keymer, Vincent"]
[Result "1-0"]
[TimeControl "40 moves in 100 minutes, f.b. 20 moves in 50 minutes f.b. 15 minutes with a 30 second increment from move 0"]
[WhiteElo "2706"]
[BlackElo "2491"]

1. e4 {[%clk 01:40:40]} {[%emt 00:00:18]} c5 {[%clk 01:40:52]} {[%emt
00:00:09]} 2. Nf3 {[%clk 01:40:44]} {[%emt 00:00:25]} d6 {[%clk 01:41:04]}
{[%emt 00:00:19]} 3. c3 {[%clk 01:39:10]} {[%emt 00:02:03]} Nf6 {[%clk
01:40:46]} {[%emt 00:00:49]} 4. Be2 {[%clk 01:39:23]} {[%emt 00:00:16]} g6
{[%clk 01:40:31]} {[%emt 00:00:45]} 5. O-O {[%clk 01:39:31]} {[%emt 00:00:22]}
Bg7 {[%clk 01:40:38]} {[%emt 00:00:23]} 6. Re1 {[%clk 01:39:31]} {[%emt
00:00:30]} O-O {[%clk 01:39:11]} {[%emt 00:01:57]} 7. Bf1 {[%clk 01:39:50]}
{[%emt 00:00:11]} Nc6 {[%clk 01:32:17]} {[%emt 00:07:25]} 8. d3 {[%clk
01:39:27]} {[%emt 00:00:52]} e5 {[%clk 01:24:41]} {[%emt 00:08:07]} 9. Nbd2
{[%clk 01:38:51]} {[%emt 00:01:05]} Re8 {[%clk 01:21:32]} {[%emt 00:03:40]} 10.
a4 {[%clk 01:27:26]} {[%emt 00:11:53]} h6 {[%clk 01:16:46]} {[%emt 00:05:16]}
11. Nc4 {[%clk 01:27:03]} {[%emt 00:00:53]} d5 {[%clk 01:15:29]} {[%emt
00:01:47]} 12. exd5 {[%clk 01:27:19]} {[%emt 00:00:14]} Nxd5 {[%clk 01:12:58]}
{[%emt 00:03:01]} 13. a5 {[%clk 01:26:06]} {[%emt 00:01:44]} Bf5 {[%clk
01:05:57]} {[%emt 00:07:32]} 14. Nfd2 {[%clk 01:06:32]} {[%emt 00:20:03]} Be6
{[%clk 00:56:08]} {[%emt 00:10:19]} 15. Qa4 {[%clk 01:06:12]} {[%emt 00:00:50]}
Qc7 {[%clk 00:48:04]} {[%emt 00:08:35]} 16. Ne4 {[%clk 01:05:35]} {[%emt
00:01:06]} Bf8 {[%clk 00:45:50]} {[%emt 00:02:44]} 17. Be3 {[%clk 00:59:57]}
{[%emt 00:06:08]} b6 {[%clk 00:37:29]} {[%emt 00:08:52]} 18. axb6 {[%clk
00:59:34]} {[%emt 00:00:53]} axb6 {[%clk 00:37:51]} {[%emt 00:00:08]} 19. Qxa8
{[%clk 00:59:53]} {[%emt 00:00:11]} Rxa8 {[%clk 00:38:18]} {[%emt 00:00:03]} 20.
Rxa8 {[%clk 01:00:15]} {[%emt 00:00:07]} g5 {[%clk 00:36:41]} {[%emt 00:02:08]}
21. Nxb6 {[%clk 00:57:18]} {[%emt 00:03:27]} Qxb6 {[%clk 00:30:41]} {[%emt
00:06:30]} 22. Bxc5 {[%clk 00:56:59]} {[%emt 00:00:49]} Qxb2 {[%clk 00:30:37]}
{[%emt 00:00:35]} 23. Bxf8 {[%clk 00:56:45]} {[%emt 00:00:43]} Kh7 {[%clk
00:29:16]} {[%emt 00:01:51]} 24. Ra6 {[%clk 00:50:51]} {[%emt 00:06:24]} Nb8
{[%clk 00:26:35]} {[%emt 00:03:12]} 25. Raa1 {[%clk 00:33:54]} {[%emt
00:17:27]} Nd7 {[%clk 00:19:46]} {[%emt 00:07:20]} 26. Ba3 {[%clk 00:31:57]}
{[%emt 00:02:27]} Qb6 {[%clk 00:17:58]} {[%emt 00:02:18]} 27. c4 {[%clk
00:31:51]} {[%emt 00:00:36]} Nf4 {[%clk 00:18:06]} {[%emt 00:00:22]} 28. Bc1
{[%clk 00:20:58]} {[%emt 00:11:22]} Bf5 {[%clk 00:14:15]} {[%emt 00:04:22]} 29.
Be3 {[%clk 00:21:10]} {[%emt 00:00:18]} Qc6 {[%clk 00:13:15]} {[%emt 00:01:30]}
30. Ra7 {[%clk 00:21:32]} {[%emt 00:00:07]} Kg7 {[%clk 00:11:35]} {[%emt
00:02:10]} 31. c5 {[%clk 00:18:14]} {[%emt 00:03:47]} Nd5 {[%clk 00:09:45]}
{[%emt 00:02:21]} 32. Nd6 {[%clk 00:17:26]} {[%emt 00:01:18]} Be6 {[%clk
00:08:25]} {[%emt 00:01:49]} 33. d4 {[%clk 00:15:56]} {[%emt 00:02:00]} Nxe3
{[%clk 00:08:18]} {[%emt 00:00:37]} 34. Rxe3 {[%clk 00:16:16]} {[%emt
00:00:10]} exd4 {[%clk 00:07:40]} {[%emt 00:01:09]} 35. Rxe6 {[%clk 00:16:34]}
{[%emt 00:00:12]} fxe6 {[%clk 00:07:55]} {[%emt 00:00:15]} 36. Rc7 {[%clk
00:15:47]} {[%emt 00:01:17]} Qd5 {[%clk 00:07:16]} {[%emt 00:01:09]} 37. Rxd7+
{[%clk 00:14:48]} {[%emt 00:01:30]} Kf8 {[%clk 00:07:27]} {[%emt 00:00:18]} 38.
Rf7+ {[%clk 00:14:12]} {[%emt 00:01:05]} Kg8 {[%clk 00:07:53]} {[%emt
00:00:05]} 39. Rf5 {[%clk 00:14:34]} {[%emt 00:00:08]} Qb3 {[%clk 00:07:18]}
{[%emt 00:01:05]} 40. Rf3 {[%clk 00:08:44]} {[%emt 00:06:19]} Qd5 {[%clk
00:05:03]} {[%emt 00:02:46]} 41. Rf5 {[%clk 00:07:50]} {[%emt 00:01:24]} Qb3
{[%clk 00:05:23]} {[%emt 00:00:10]} 42. Re5 {[%clk 00:08:15]} {[%emt 00:00:05]}
Qc2 {[%clk 00:02:47]} {[%emt 00:03:07]} 43. Nc4 {[%clk 00:02:36]} {[%emt
00:06:10]} d3 {[%clk 00:49:36]} {[%emt 00:03:41]} 44. Ne3 {[%clk 00:52:56]}
{[%emt 00:00:09]} Qb3 {[%clk 00:47:08]} {[%emt 00:02:58]} 45. c6 {[%clk
00:50:07]} {[%emt 00:03:18]} d2 {[%clk 00:47:02]} {[%emt 00:00:36]} 46. Rc5
{[%clk 00:50:31]} {[%emt 00:00:05]} Qb6 {[%clk 00:46:49]} {[%emt 00:00:44]} 47.
Rc4 {[%clk 00:50:43]} {[%emt 00:00:18]} 1-0